fUSD/lending_fUSD_20251101
["ID","MTS","AMOUNT","RATE_DAILY","PERIOD"]
[392837117,1762025440301,-150.99,0.0001486,2]
[392837118,1762025440310,-9120.79,0.0001486,2]
[392837119,1762025440319,-326.41,0.00014869,2]
[392837121,1762025440328,-321.32984254,0.00014878,2]
[392837123,1762025440338,-509.55495922,0.0001488,2]
[392837126,1762025440348,-4597.13613983,0.0001488,2]
[392837127,1762025440357,-166.66,0.00014887,2]
[392837130,1762025440367,-7143.722836,0.00014889,2]
[392837131,1762025440376,-7143.72283598,0.0001489,2]
[392837133,1762025440384,-3242.576,0.00014891,2]
[392837135,1762025440394,-7143.72283598,0.00014891,2]
[392837137,1762025440403,-7143.72283598,0.00014893,2]
[392837140,1762025440413,-7143.72283598,0.00014894,2]
[392837142,1762025440422,-7143.72283598,0.00014895,2]
[392837144,1762025440431,-7143.72283598,0.00014896,2]
[392837146,1762025440440,-7143.72283598,0.00014898,2]
[392837148,1762025440449,-7143.72283598,0.00014899,2]
[392837149,1762025440458,-1000.0,0.000149,2]
[392837152,1762025440467,-2384.41878991,0.000149,2]
[392837154,1762025440477,-162.28100394,0.000149,2]
[392837156,1762025440486,-1227.55489105,0.000149,2]
[392837158,1762025440495,-7143.72283598,0.000149,2]
[392837160,1762025440504,-321.32984254,0.000149,2]
[392837161,1762025440514,-161.64712491,0.000149,2]
[392837163,1762025440523,-1185.88631316,0.000149,2]
[392837165,1762025440532,-435.90552979,0.000149,2]
[392837167,1762025440541,-349.50111777,0.000149,2]
[392837169,1762025440550,-358.75227148,0.000149,2]
[392837171,1762025440559,-332.50467676,0.00014908,2]
[392837173,1762025440568,-168.0,0.00014916,2]
[392837175,1762025440578,-1152.0,0.00014933,2]
[392837176,1762025440587,-1380.0,0.00014936,2]
[392837177,1762025440596,-1594.0,0.00014953,2]
[392837178,1762025440606,-1314.0,0.00014953,2]
[392837179,1762025440615,-819.0,0.00014953,2]
[392837180,1762025440624,-1272.0,0.00014953,2]
[392837181,1762025440634,-905.0,0.00014953,2]
[392837182,1762025440643,-1187.0,0.00014953,2]
[392837183,1762025440652,-607.0,0.00014953,2]
[392837184,1762025440662,-6652.0,0.00014953,2]
[392837185,1762025440671,-3420.0,0.00014953,2]
[392837186,1762025440679,-500.0,0.00014959,2]
[392837187,1762025440688,-362732.3862402,0.00014966,2]
[392837188,1762025440697,-506.56477571,0.00014973,2]
[392837189,1762025440706,-500.0,0.00014973,2]
[392837190,1762025440715,-500.0,0.00014973,2]
[392837191,1762025440724,-500.0,0.00014973,2]
[392837192,1762025440733,-506.42563765,0.00014973,2]
[392837193,1762025440742,-500.0,0.00014973,2]
[392837194,1762025440751,-394.89734419,0.00014973,2]
[392837195,1762025440761,-500.0,0.00014973,2]
[392837196,1762025440770,-500.0,0.00014973,2]
[392837197,1762025440779,-201.00446989,0.00014973,2]
[392837198,1762025440787,-150.0,0.00014973,2]
[392837199,1762025440798,-150.0,0.00014973,2]
[392837200,1762025440808,-500.0,0.00014973,2]
[392837201,1762025440818,-150.0,0.00014973,2]
[392837202,1762025440828,-150.0,0.00014973,2]
[392837203,1762025440839,-500.0,0.00014973,2]
[392837204,1762025440848,-150.0,0.00014973,2]
[392837205,1762025440857,-150.0,0.00014973,2]
[392837206,1762025440867,-150.0,0.00014973,2]
[392837207,1762025440876,-500.0,0.00014973,2]
[392837208,1762025440886,-500.0,0.00014973,2]
[392837209,1762025440895,-500.0,0.00014973,2]
[392837210,1762025440904,-500.0,0.00014973,2]
[392837211,1762025440914,-381.18930875,0.00014973,2]
[392837212,1762025440925,-150.0,0.00014973,2]
[392837213,1762025440935,-150.0,0.00014973,2]
[392837214,1762025440945,-500.0,0.00014973,2]
[392837215,1762025440956,-150.0,0.00014973,2]
[392837216,1762025440966,-168.0,0.00014977,2]
[392837217,1762025440976,-2260.0,0.0001498,2]
[392837218,1762025440987,-1255197.654131,0.0001498,2]
[392837219,1762025440997,-151.0,0.0001498,2]
[392837220,1762025441007,-151.0,0.0001498,2]
[392837221,1762025441016,-151.0,0.0001498,2]
[392837222,1762025441026,-235.342768,0.0001498,2]
[392837223,1762025441035,-151.0,0.0001498,2]
[392837224,1762025441044,-151.0,0.0001498,2]
[392837225,1762025441055,-151.0,0.0001498,2]
[392837226,1762025441065,-151.0,0.0001498,2]
[392837227,1762025441076,-151.0,0.0001498,2]
[392837228,1762025441085,-151.0,0.0001498,2]
[392837229,1762025441094,-151.0,0.0001498,2]
[392837230,1762025441103,-151.0,0.0001498,2]
[392837231,1762025441112,-151.0,0.0001498,2]
[392837232,1762025441121,-151.0,0.0001498,2]
[392837233,1762025441131,-151.0,0.0001498,2]
[392837234,1762025441140,-151.0,0.0001498,2]
[392837235,1762025441149,-151.0,0.0001498,2]
[392837236,1762025441158,-151.0,0.0001498,2]
[392837237,1762025441167,-151.0,0.0001498,2]
[392837238,1762025441176,-151.0,0.0001498,2]
[392837239,1762025441185,-151.0,0.0001498,2]
[392837240,1762025441194,-151.0,0.0001498,2]
[392837241,1762025441203,-151.0,0.0001498,2]
[392837242,1762025441212,-281.942167,0.0001498,2]
[392837243,1762025441220,-151.0,0.0001498,2]
[392837244,1762025441230,-151.0,0.0001498,2]
[392837245,1762025441239,-168.216101,0.0001498,2]
[392837246,1762025441249,-151.0,0.0001498,2]
[392837247,1762025441261,-3685.80464606,0.00014988,2]
[392837248,1762025441270,-1033.86584802,0.00014998,2]
[392837249,1762025441279,-26569.6768433,0.00014999,2]
[392837250,1762025441288,-911.4418866,0.00014999,2]
[392837251,1762025441298,-4339.9724585,0.00014999,2]
[392837252,1762025441307,-17115.2616707,0.00014999,2]
[392837253,1762025441316,-500.0,0.00014999,2]
[392837254,1762025441326,-500.0,0.00014999,2]
[392837255,1762025441337,-500.0,0.00014999,2]
[392837256,1762025441347,-571.52,0.00014999,2]
[392837257,1762025441356,-170.0,0.00014999,2]
[392837258,1762025441365,-1027704.75292473,0.00015,2]
[392837259,1762025441374,-989890.38970121,0.00015,2]
[392837260,1762025441384,-1403973.50733658,0.00015,2]
[392837275,1762025443179,-535.321,0.00014933,2]
[392837330,1762025445978,-153.51693265,0.000148,2]
[392837331,1762025445987,-1653.182,0.00014933,2]
[392837332,1762025445997,-820.0,0.00014933,2]
[392837333,1762025446006,-150.0,0.00014973,2]
[392837334,1762025446015,-500.0,0.00014973,2]
[392837335,1762025446024,-5035.45253655,0.00015,2]
[392837336,1762025446135,-1070.0,0.00015,2]
[392837339,1762025451075,374.87,0.00014551,2]
[392837340,1762025488603,646.261,0.000147,2]
[392837341,1762025514892,8825.36206735,0.000147,2]
[392837342,1762025514924,10000.01,0.000147,2]
[392837343,1762025514957,10000.01,0.000147,2]
[392837344,1762025514985,10000.01,0.000147,2]
[392837345,1762025515012,6735.13923265,0.000147,2]
[392837346,1762025531631,1000.0,0.000147,2]
[392837347,1762025536196,282.79597328,0.00014149,2]
[392837348,1762025538040,500.0,0.00014799,2]
[392837349,1762025538110,274.68975984,0.00014799,2]
[392837350,1762025538147,500.0,0.00014799,2]
[392837351,1762025538184,500.0,0.00014799,2]
[392837352,1762025538221,207.38503423,0.00014799,2]
[392837353,1762025538245,292.61496577,0.00014799,2]
[392837354,1762025538286,256.69443539,0.00014799,2]
[392837355,1762025538336,500.0,0.00014799,2]
[392837356,1762025538663,381.0,0.00014486,2]
[392837357,1762025542003,381.0,0.00014655,2]
[392837358,1762025542801,2500.0,0.000149,3]
[392837359,1762025559864,381.0,0.00014634,2]
[392837360,1762025576522,500.0,0.00031232,120]
[392837361,1762025576779,500.0,0.00031506,120]
[392837362,1762025582316,150.0,0.00014799,2]
[392837364,1762025595028,10000.0,0.00015,7]
[392837365,1762025641739,176.79,0.00011206,2]
[392837366,1762025701182,300.0,0.00014799,2]
[392837367,1762025701219,300.0,0.00014799,2]
[392837368,1762025701478,1200.0,0.00014799,2]
[392837369,1762025712995,9335.0,0.00015,7]
[392837370,1762025754904,150.0,0.00013942,2]
[392837371,1762025762786,150.0,0.00014799,2]
[392837372,1762025828505,500.0,0.00031232,120]
[392837373,1762025828772,500.0,0.00031506,120]
[392837374,1762025859194,547.0,0.00014799,2]
[392837375,1762025941930,150.0,0.00014799,2]
[392837376,1762025960995,168.0,0.00014738,2]
[392837377,1762026001849,1200.0,0.00014799,2]
[392837378,1762026068058,500.0,0.00031232,120]
[392837379,1762026068335,500.0,0.00031506,120]
[392837380,1762026078233,500.0,0.00031232,120]
[392837381,1762026078465,500.0,0.00031506,120]
[392837382,1762026110774,3315.91059884,0.00013948,2]
[392837383,1762026110798,10000.01,0.00013948,2]
[392837384,1762026110820,2041.33940116,0.00013948,2]
[392837385,1762026121926,150.0,0.00014799,2]
[392837386,1762026124171,159.91305525,0.00014493,2]
[392837387,1762026124264,159.91305525,0.0001463,2]
[392837388,1762026124554,159.91305525,0.00014767,2]
[392837389,1762026128614,239.84119403,0.00014791,2]
[392837390,1762026140140,155.54137155,0.00014791,2]
[392837391,1762026143372,500.0,0.000147,2]
[392837392,1762026144074,6433.54886751,0.00014791,2]
[392837393,1762026144097,1826.58185488,0.00014791,2]
[392837394,1762026158019,168.0,0.00014452,2]
[392837395,1762026176725,1589.34,0.00014049,2]
[392837396,1762026214208,-1000.0,0.000148,2]
[392837397,1762026243607,4386.23,0.0001391,2]
[392837398,1762026276296,150.0,0.0001475,2]
[392837399,1762026276351,150.0,0.0001473,2]
[392837400,1762026301171,1200.0,0.00014799,2]
[392837401,1762026301877,150.0,0.00014799,2]
[392837402,1762026308927,150.0,0.00013488,2]
[392837403,1762026309165,220.29140278,0.00013488,2]
[392837404,1762026309207,9.56674234,0.00013488,2]
[392837405,1762026309233,174.38861601,0.00013488,2]
[392837406,1762026313822,213.22810895,0.00013488,2]
[392837407,1762026313939,174.70371665,0.00013488,2]
[392837408,1762026316224,265.86558,0.00013488,2]
[392837409,1762026319360,500.0,0.00031232,120]
[392837410,1762026319604,500.0,0.00031506,120]
[392837411,1762026320782,150.0,0.00013488,2]
[392837412,1762026323137,154.24920313,0.00013488,2]
[392837413,1762026329744,150.0,0.00013488,2]
[392837414,1762026329820,161.66544402,0.00013488,2]
[392837415,1762026329858,282.30439477,0.00013488,2]
[392837416,1762026366868,168.0,0.00014594,2]
[392837417,1762026427228,166.68,0.00014315,2]
[392837418,1762026429969,1711.17633745,0.00014791,2]
[392837419,1762026453054,239.84119403,0.00014791,2]
[392837426,1762026482114,150.0,0.00014799,2]
[392837427,1762026543938,500.0,0.00031232,120]
[392837428,1762026544148,500.0,0.00031506,120]
[392837429,1762026556600,2000.0,0.00014,2]
[392837430,1762026559445,592.2961,0.00014711,2]
[392837431,1762026564504,168.0,0.00014572,2]
[392837432,1762026601214,1200.0,0.00014799,2]
[392837433,1762026622155,388.17634613,0.000147,2]
[392837434,1762026624964,3376.7891,0.00014711,2]
[392837435,1762026628641,165.39,0.0001393,2]
[392837436,1762026632102,-4355.2539636,0.000148,2]
[392837437,1762026632113,-5908.10302347,0.000148,2]
[392837438,1762026632262,-13633.46589974,0.000148,2]
[392837520,1762026637381,234.1605,0.00014711,2]
[392837521,1762026638120,-1877.37012887,0.000148,2]
[392837530,1762026640107,-823.87742914,0.000148,2]
[392837531,1762026640133,-29101.98955518,0.000148,2]
[392837532,1762026640143,-11196.52297105,0.000148,2]
[392837533,1762026640155,-2043.47737724,0.000148,2]
[392837534,1762026640165,-16955.9941,0.000148,2]
[392837535,1762026640175,-4918.91546115,0.000148,2]
[392837536,1762026640184,-250.0,0.00014803,2]
[392837537,1762026640194,-1425.0,0.00014823,2]
[392837538,1762026640204,-633.11162776,0.00014843,2]
[392837539,1762026640216,-9999.99,0.00014844,2]
[392837540,1762026640226,-1043.61,0.00014844,2]
[392837541,1762026640235,-1777.32,0.00014844,2]
[392837542,1762026640245,-7728.06,0.00014844,2]
[392837543,1762026640255,-150.99,0.00014844,2]
[392837544,1762026640264,-9999.99,0.00014844,2]
[392837545,1762026640274,-999.99,0.00014844,2]
[392837546,1762026640283,-263.47117,0.0001485,2]
[392837547,1762026640293,-170.68341076,0.00014855,2]
[392837548,1762026640302,-263.47117,0.0001486,2]
[392837549,1762026640312,-170.68341075,0.0001487,2]
[392837550,1762026640322,-381.0,0.0001487,2]
[392837551,1762026640331,-159.91305525,0.00014877,2]
[392837552,1762026640341,-168.0,0.00014877,2]
[392837553,1762026640350,-200.0,0.0001488,2]
[392837554,1762026640359,-170.68341075,0.00014885,2]
[392837555,1762026640369,-3729.095,0.00014889,2]
[392837556,1762026640378,-313.15,0.0001489,2]
[392837557,1762026640388,-349.08,0.0001489,2]
[392837558,1762026640397,-151.0,0.00014891,2]
[392837559,1762026640407,-200.0,0.00014891,2]
[392837560,1762026640416,-151.0,0.00014891,2]
[392837561,1762026640426,-151.0,0.00014891,2]
[392837562,1762026640435,-322.6107,0.00014891,2]
[392837563,1762026640444,-151.0,0.00014891,2]
[392837564,1762026640454,-200.0,0.00014891,2]
[392837565,1762026640463,-151.0,0.00014891,2]
[392837567,1762026640705,-151.14476816,0.00014891,2]
[392837568,1762026640717,-151.0,0.00014891,2]
[392837569,1762026640727,-181.08010149,0.00014891,2]
[392837570,1762026640736,-500.0,0.00014891,2]
[392837571,1762026640746,-151.0,0.00014891,2]
[392837572,1762026640755,-151.0,0.00014891,2]
[392837573,1762026640764,-623.58710448,0.00014891,2]
[392837574,1762026640773,-620.0,0.00014891,2]
[392837575,1762026640787,-200.0,0.00014891,2]
[392837576,1762026640796,-160.0,0.00014891,2]
[392837577,1762026640806,-151.0,0.00014891,2]
[392837578,1762026640815,-151.0,0.00014891,2]
[392837579,1762026640826,-151.0,0.00014891,2]
[392837580,1762026640835,-500.0,0.00014891,2]
[392837581,1762026640844,-151.0,0.00014891,2]
[392837582,1762026640854,-500.0,0.00014891,2]
[392837583,1762026640863,-151.0,0.00014891,2]
[392837584,1762026640873,-500.0,0.00014891,2]
[392837585,1762026640882,-500.0,0.00014891,2]
[392837586,1762026640892,-181.08010149,0.00014891,2]
[392837587,1762026640901,-151.0,0.00014891,2]
[392837588,1762026640911,-500.0,0.00014891,2]
[392837589,1762026640921,-500.0,0.00014891,2]
[392837590,1762026640932,-250.0,0.00014891,2]
[392837591,1762026640943,-151.0,0.00014891,2]
[392837592,1762026640952,-500.0,0.00014891,2]
[392837593,1762026640961,-250.0,0.00014891,2]
[392837594,1762026640970,-500.0,0.00014891,2]
[392837595,1762026640981,-496.47127164,0.00014891,2]
[392837596,1762026640991,-500.0,0.00014891,2]
[392837597,1762026641000,-250.0,0.00014891,2]
[392837598,1762026641011,-500.0,0.00014891,2]
[392837599,1762026641020,-500.0,0.00014891,2]
[392837600,1762026641029,-500.0,0.00014891,2]
[392837601,1762026641038,-500.0,0.00014891,2]
[392837602,1762026641048,-500.0,0.00014891,2]
[392837603,1762026641057,-500.0,0.00014891,2]
[392837604,1762026641066,-500.0,0.00014891,2]
[392837605,1762026641075,-250.0,0.00014891,2]
[392837606,1762026641085,-500.0,0.00014891,2]
[392837607,1762026641095,-500.0,0.00014891,2]
[392837608,1762026641104,-250.0,0.00014891,2]
[392837609,1762026641115,-500.0,0.00014891,2]
[392837610,1762026641125,-500.0,0.00014891,2]
[392837611,1762026641134,-250.0,0.00014891,2]
[392837612,1762026641143,-500.0,0.00014891,2]
[392837613,1762026641155,-500.0,0.00014891,2]
[392837614,1762026641164,-250.0,0.00014891,2]
[392837615,1762026641173,-500.0,0.00014891,2]
[392837616,1762026641183,-250.0,0.00014891,2]
[392837617,1762026641193,-500.0,0.00014891,2]
[392837618,1762026641203,-500.0,0.00014891,2]
[392837619,1762026641212,-250.0,0.00014891,2]
[392837620,1762026641221,-500.0,0.00014891,2]
[392837621,1762026641231,-286.5032696,0.00014891,2]
[392837622,1762026641240,-250.0,0.00014891,2]
[392837623,1762026641250,-500.0,0.00014891,2]
[392837624,1762026641260,-250.0,0.00014891,2]
[392837625,1762026641269,-500.0,0.00014891,2]
[392837626,1762026641278,-151.0,0.00014891,2]
[392837627,1762026641287,-250.0,0.00014891,2]
[392837628,1762026641296,-594.34611461,0.00014891,2]
[392837629,1762026641306,-250.0,0.00014891,2]
[392837630,1762026641315,-250.0,0.00014891,2]
[392837631,1762026641324,-250.0,0.00014891,2]
[392837632,1762026641333,-250.0,0.00014891,2]
[392837633,1762026641343,-250.0,0.00014891,2]
[392837634,1762026641352,-250.0,0.00014891,2]
[392837635,1762026641361,-500.0,0.00014891,2]
[392837636,1762026641370,-250.0,0.00014891,2]
[392837637,1762026641379,-500.0,0.00014891,2]
[392837638,1762026641389,-250.0,0.00014891,2]
[392837639,1762026641398,-250.0,0.00014891,2]
[392837640,1762026641408,-250.0,0.00014891,2]
[392837641,1762026641417,-250.0,0.00014891,2]
[392837642,1762026641427,-250.0,0.00014891,2]
[392837643,1762026641436,-250.0,0.00014891,2]
[392837644,1762026641446,-250.0,0.00014891,2]
[392837645,1762026641455,-250.0,0.00014891,2]
[392837646,1762026641464,-250.0,0.00014891,2]
[392837647,1762026641474,-250.0,0.00014891,2]
[392837648,1762026641483,-250.0,0.00014891,2]
[392837649,1762026641493,-250.0,0.00014891,2]
[392837650,1762026641502,-250.0,0.00014891,2]
[392837651,1762026641512,-170.0,0.00014899,2]
[392837652,1762026641521,-500.0,0.00014899,2]
[392837653,1762026641531,-507.3491352,0.00014899,2]
[392837654,1762026641540,-505.83305054,0.00014899,2]
[392837655,1762026641550,-500.0,0.00014899,2]
[392837656,1762026641559,-500.0,0.00014899,2]
[392837657,1762026641569,-175.77305383,0.00014899,2]
[392837658,1762026641578,-500.0,0.00014899,2]
[392837659,1762026641588,-203.16204353,0.00014899,2]
[392837660,1762026641597,-283.58015769,0.00014899,2]
[392837661,1762026641607,-429.98389556,0.00014899,2]
[392837662,1762026641617,-500.0,0.00014899,2]
[392837663,1762026641626,-500.0,0.00014899,2]
[392837664,1762026641635,-500.0,0.00014899,2]
[392837665,1762026641645,-664.64802279,0.000149,2]
[392837666,1762026641654,-664.6480228,0.000149,2]
[392837667,1762026641663,-500.0,0.000149,2]
[392837668,1762026641672,-500.0,0.000149,2]
[392837669,1762026641681,-500.0,0.000149,2]
[392837670,1762026641690,-500.0,0.000149,2]
[392837671,1762026641699,-500.0,0.000149,2]
[392837672,1762026641709,-500.0,0.000149,2]
[392837673,1762026641723,-500.0,0.000149,2]
[392837674,1762026641733,-500.0,0.000149,2]
[392837675,1762026641742,-500.0,0.000149,2]
[392837676,1762026641751,-500.0,0.000149,2]
[392837677,1762026641761,-500.0,0.000149,2]
[392837678,1762026641770,-500.0,0.000149,2]
[392837679,1762026641779,-333.9902906,0.000149,2]
[392837680,1762026641788,-1583.56,0.000149,2]
[392837681,1762026641798,-323.31169923,0.000149,2]
[392837682,1762026641807,-79495.85763262,0.000149,2]
[392837683,1762026641817,-1000.0,0.000149,2]
[392837684,1762026641826,-153.51693265,0.000149,2]
[392837685,1762026641836,-6633.98114672,0.000149,2]
[392837686,1762026641845,-239.16818098,0.000149,2]
[392837687,1762026641854,-290.60368652,0.000149,2]
[392837688,1762026641863,-790.59087544,0.000149,2]
[392837689,1762026641873,-170.68341075,0.000149,2]
[392837690,1762026641882,-233.00074518,0.000149,2]
[392837691,1762026641892,-381.0,0.00014901,2]
[392837692,1762026641901,-601.81133531,0.00014911,2]
[392837693,1762026641911,-381.0,0.00014918,2]
[392837694,1762026641920,-165.39,0.00014925,2]
[392837695,1762026641933,-882.04624044,0.0001495,2]
[392837696,1762026641942,-150.0,0.00014953,2]
[392837697,1762026641952,-825.56,0.00014955,2]
[392837698,1762026641961,-607.0,0.00014955,2]
[392837699,1762026641971,-3420.0,0.00014955,2]
[392837700,1762026641980,-573.0,0.00014955,2]
[392837701,1762026641989,-1314.0,0.00014955,2]
[392837702,1762026641998,-1594.0,0.00014955,2]
[392837703,1762026642007,-1272.0,0.00014955,2]
[392837704,1762026642016,-819.0,0.00014955,2]
[392837705,1762026642025,-1267.497,0.00014955,2]
[392837706,1762026642034,-2188.503,0.00014955,2]
[392837707,1762026642043,-559.0,0.00014955,2]
[392837708,1762026642052,-6468.0,0.00014955,2]
[392837709,1762026642062,-6652.0,0.00014955,2]
[392837710,1762026642071,-1842.90232303,0.0001496,2]
[392837711,1762026642081,-168.0,0.0001496,2]
[392837712,1762026642090,-516.93292402,0.00014965,2]
[392837713,1762026642099,-501.76444225,0.00014973,2]
[392837714,1762026642108,-500.0,0.00014973,2]
[392837715,1762026642117,-500.0,0.00014973,2]
[392837716,1762026642127,-500.0,0.00014973,2]
[392837717,1762026642136,-502.52385365,0.00014973,2]
[392837718,1762026642145,-500.0,0.00014973,2]
[392837719,1762026642154,-203.26715863,0.00014973,2]
[392837720,1762026642164,-500.0,0.00014973,2]
[392837721,1762026642174,-495.05307951,0.00014973,2]
[392837722,1762026642183,-500.47716849,0.00014973,2]
[392837723,1762026642192,-500.0,0.00014973,2]
[392837724,1762026642202,-153.1227138,0.00014973,2]
[392837725,1762026642211,-151.22816323,0.00014973,2]
[392837726,1762026642220,-150.0,0.00014973,2]
[392837727,1762026642230,-215.35327944,0.00014973,2]
[392837728,1762026642239,-500.0,0.00014973,2]
[392837729,1762026642249,-151.90915939,0.00014973,2]
[392837730,1762026642258,-265.39843377,0.00014973,2]
[392837731,1762026642267,-150.79851215,0.00014973,2]
[392837732,1762026642277,-150.0,0.00014973,2]
[392837733,1762026642286,-150.0,0.00014973,2]
[392837734,1762026642295,-225.46366359,0.00014973,2]
[392837735,1762026642305,-150.0,0.00014973,2]
[392837736,1762026642315,-150.0,0.00014973,2]
[392837737,1762026642324,-150.0,0.00014973,2]
[392837738,1762026642333,-150.0,0.00014973,2]
[392837739,1762026642342,-500.0,0.00014973,2]
[392837740,1762026642352,-500.0,0.00014973,2]
[392837741,1762026642361,-150.0,0.00014973,2]
[392837742,1762026642370,-150.0,0.00014973,2]
[392837743,1762026642379,-150.0,0.00014973,2]
[392837744,1762026642389,-150.0,0.00014973,2]
[392837745,1762026642398,-150.0,0.00014973,2]
[392837746,1762026642407,-150.0,0.00014973,2]
[392837747,1762026642417,-150.0,0.00014973,2]
[392837748,1762026642426,-150.0,0.00014973,2]
[392837749,1762026642436,-200.0,0.00014973,2]
[392837750,1762026642445,-150.0,0.00014973,2]
[392837751,1762026642454,-150.0,0.00014973,2]
[392837752,1762026642463,-150.0,0.00014973,2]
[392837753,1762026642473,-150.0,0.00014973,2]
[392837754,1762026642482,-500.0,0.00014973,2]
[392837755,1762026642491,-153.1757439,0.00014986,2]
[392837756,1762026642500,-2005.0,0.00014986,2]
[392837757,1762026642509,-1325.0,0.00014986,2]
[392837758,1762026642519,-155.675,0.0001499,2]
[392837759,1762026642531,-500.0,0.0001499,2]
[392837760,1762026642540,-500.0,0.0001499,2]
[392837761,1762026642549,-500.0,0.0001499,2]
[392837762,1762026642558,-152.00852263,0.0001499,2]
[392837763,1762026642568,-152.00852263,0.0001499,2]
[392837764,1762026642577,-2050.45779052,0.00014999,2]
[392837765,1762026642586,-155.0,0.00014999,2]
[392837766,1762026642595,-500.0,0.00014999,2]
[392837767,1762026642604,-500.0,0.00014999,2]
[392837768,1762026642614,-500.0,0.00014999,2]
[392837769,1762026642623,-354.05632821,0.00014999,2]
[392837770,1762026642633,-500.0,0.00014999,2]
[392837771,1762026642642,-500.0,0.00014999,2]
[392837772,1762026642655,-500.0,0.00014999,2]
[392837773,1762026642665,-500.0,0.00014999,2]
[392837774,1762026642675,-500.0,0.00014999,2]
[392837775,1762026642685,-500.0,0.00014999,2]
[392837776,1762026642694,-500.0,0.00014999,2]
[392837777,1762026642704,-500.0,0.00014999,2]
[392837778,1762026642714,-500.0,0.00014999,2]
[392837779,1762026642723,-500.0,0.00014999,2]
[392837780,1762026642733,-500.0,0.00014999,2]
[392837781,1762026642742,-500.0,0.00014999,2]
[392837782,1762026642751,-500.0,0.00014999,2]
[392837783,1762026642760,-557.72088814,0.00014999,2]
[392837784,1762026642769,-500.0,0.00014999,2]
[392837785,1762026642779,-500.0,0.00014999,2]
[392837786,1762026642788,-500.0,0.00014999,2]
[392837787,1762026642797,-666.0,0.00014999,2]
[392837788,1762026642807,-2505.0,0.00015,2]
[392837789,1762026642817,-44992.23304961,0.00015,2]
[392837790,1762026642826,-1465199.01564898,0.00015,2]
[392837792,1762026642851,-1032.13277268,0.00015,2]
[392837793,1762026642862,-19998.65213997,0.00015,2]
[392837794,1762026642876,-413629.15589154,0.00015,2]
[392837795,1762026642886,-500.84938291,0.00015,2]
[392837796,1762026642895,-600.0,0.00015,2]
[392837797,1762026642904,-162.5917353,0.00015,2]
[392837798,1762026642918,-474387.96598722,0.00015,2]
[392837799,1762026642932,-150.0,0.00015,2]
[392837800,1762026642945,-593.78779973,0.00015,2]
[392837801,1762026642958,-1700068.9970999,0.00015,2]
[392837802,1762026642971,-891833.3464551,0.00015,2]
[392837807,1762026643209,-235948.29590471,0.00015,2]
[392837808,1762026643222,-227205.49806319,0.00015,2]
[392837809,1762026643236,-157682.83661829,0.00015,2]
[392837810,1762026643248,-51488.09683867,0.00015,2]
[392837819,1762026646262,-442.60136892,0.000148,2]
[392837820,1762026670484,5025.40266015,0.000149,3]
[392837821,1762026687796,4635.49405387,0.00014799,2]
[392837822,1762026687821,5364.51594613,0.00014799,2]
[392837823,1762026764317,809.64,0.00014534,2]
[392837824,1762026801517,500.0,0.00031232,120]